Workbook

Sheet Introduction
D7: Pour une utilisation optimale de ce fichier, veuillez le sauver dans votre répertoire avant de l'utiliser.
D9: Le présent simulateur est destiné à mettre à disposition des acteurs de marché un complément
D10: d'information relatif aux modalités d'application des tarifs pour l'accès au réseau (*), des tarifs pour
D11: les obligations de service public et des taxes et surcharges.
D12: Ne sont pas visés par ce programme : les tarifs de raccordement et les tarifs de compensation des
D13: déséquilibres quart-horaires.
D15: La simulation illustre le calcul des montants liés à l'accès au réseau d'Elia par des utilisateurs raccordés
D16: à ce niveau. Elle tient également compte de la région dans laquelle se situe le point d'accès considéré,
D17: le niveau d'infrastructure et le type de point d'accès.
D19: Les tarifs sont d'application du 1er janvier 2020 au 31 décembre 2020.
D21: La simulation est destinée aux clients directement connectés au réseau d'Elia, avec ou sans
D22: production locale située au même point d'accès. La simulation n'est pas destinée aux gestionnaires de réseau de distribution.
D24: La simulation n'est pas destinée aux point d'accès en offshore raccordés sur le MOG et les points d'accès au GD du Luxembourg. Si vous souhaitez recevoir une simulation pour ces points d'accès, veuillez contacter votre KAM.
D26: Pour utiliser le programme, introduisez d'abord les caractéristiques du profil d'accès sur la
D27: feuille "Données". Les résultats peuvent alors être consultés sur les feuilles "Résultats I" (tarifs
D28: applicables au point d'accès considéré) et "Résultats II" (montants liés aux termes pour l'accès au réseau,
D29: pour les obligations de service public et pour les taxes et surcharges pour le point d'accès considéré).
D33: (*) Hors le tarif du complément d'énergie réactive et le tarif pour dépassement éventuel
D34: de la puissance mise à disposition.
D38: Disclaimer :
D40: Le présent fichier et l'information qu'il contient, notamment les tarifs mentionnés, sont mis à disposition
D41: des utilisateurs à titre purement informatif. Cette information vise à faciliter l'estimation des montants liés
D42: à l'utilisation du réseau par un utilisateur raccordé en un point donné. Ni les informations contenues dans
D43: le présent fichier, ni les tarifs, ni les résultats affichés ne sont de nature contractuelle. Ces éléments ne
D44: constituent pas une offre préalable à la conclusion d'un contrat et n'engagent Elia en aucune manière.
D46: Elia ne fournit aucune garantie quant au caractère adéquat, à l'exactitude ou au caractère complet des
D47: informations communiquées et/ou calculées, ni sur la période de validité des tarifs utilisés. Elia ne peut
D48: être tenue responsable des conséquences résultant du caractère éventuellement incomplet, incorrect ou
D49: non à jour des informations et tarifs repris dans ce fichier.

Sheet Données
C3: Données à remplir par l'utilisateur
D5: 1. Caractéristiques du point d'accès
E7: Introduisez ci-après le niveau d’infrastructure, la région et le type de point d'accès.
E10: Niveau d’infrastructure : | G10: En réseau 380/220/150 kV
E12: Région : | G12: Bruxelles Capitale
E14: Type de point d'accès: | G14: Principal
D16: 2. Pointes nettes prélevées (en MW)
E18: Introduisez ci-après les pointes de prélèvement net réalisées par mois (colonne A).
E19: Introduisez également les pointes de prélèvement net réalisées pendant les heures de 17 à 20, hors
E20: week-end et jours fériés, uniquement pendant les mois de janvier à mars et de novembre à décembre (colonne B).
E22: N.B. : Par mois, la valeur dans la colonne B est toujours plus petite ou égale à la valeur dans la colonne A
E23: pour l'année 2020.
F25: A (année 2020) | G25: B (année 2019) | H25: B (année 2020) | I25: Pointe annuelle
E26: Janvier | I26: =MAX($G$27:$G$37,H26) -> 0 | J26: =IF(H26>F26,"Pointes A et B incompatibles","") -> 
E27: Février | I27: =MAX($G28:$G$37,H$26:H27) -> 0 | J27: =IF(H27>F27,"Pointes A et B incompatibles","") -> 
E28: Mars | I28: =MAX($G29:$G$37,H$26:H28) -> 0 | J28: =IF(H28>F28,"Pointes A et B incompatibles","") -> 
E29: Avril | I29: =MAX($G30:$G$37,H$26:H29) -> 0
E30: Mai | I30: =MAX($G31:$G$37,H$26:H30) -> 0
E31: Juin | I31: =MAX($G32:$G$37,H$26:H31) -> 0
E32: Juillet | I32: =MAX($G33:$G$37,H$26:H32) -> 0
E33: Août | I33: =MAX($G34:$G$37,H$26:H33) -> 0
E34: Septembre | I34: =MAX($G35:$G$37,H$26:H34) -> 0
E35: Octobre | I35: =MAX($G36:$G$37,H$26:H35) -> 0
E36: Novembre | I36: =MAX($G37:$G$37,H$26:H36) -> 0 | J36: =IF(H36>F36,"Pointes A et B incompatibles","") -> 
E37: Décembre | I37: =MAX(H$26:H37) -> 0 | J37: =IF(H37>F37,"Pointes A et B incompatibles","") -> 
D40: 3. Puissance mise à disposition (en MVA)
E42: Introduisez ci-après la puissance mise à disposition du point de prélèvement.
E44: N.B. : La puissance mise à disposition doit être au minimum égale à la pointe prélevée maximale
E45: de l'année. La puissance mise à disposition doit tenir compte du facteur de puissance des installations
E46: raccordées derrière le point d'accès au réseau.
G48: =IF(F48<MAX(F26:F37)," Erreur: plus bas que la pointe maximale 2019","") -> 
D51: 4. Energies nettes prélevées (en MWh)
E53: Introduisez ci-après les énergies nettes prélevées par mois.
E55: Si vous le désirez, vous pouvez introduire un % d'utilisation pour calcul automatique des énergies mensuelles
E56: sur base des pointes nettes prélevées introduites ci-dessus et ensuite actionner le bouton.
F58: 1
F61: Nombre d'heures du mois | G61: Energie mensuelle maximale | H61: Energie mensuelle
E62: Janvier | F62: 744 | G62: =F26*F62 -> 0 | I62: =IF(H62>G62,"Energie et pointe incompatibles","") -> 
E63: Février | F63: 696 | G63: =F27*F63 -> 0 | I63: =IF(H63>G63,"Energie et pointe incompatibles","") -> 
E64: Mars | F64: 743 | G64: 0
E65: Avril | F65: 720 | G65: 0
E66: Mai | F66: 744 | G66: 0
E67: Juin | F67: 720 | G67: 0
E68: Juillet | F68: 744 | G68: 0
E69: Août | F69: 744 | G69: 0
E70: Septembre | F70: 720 | G70: 0
E71: Octobre | F71: 745 | G71: 0
E72: Novembre | F72: 720 | G72: 0
E73: Décembre | F73: 744 | G73: 0
H74: =SUM(H62:H73) -> 0
D77: 5. Energie nette injectée (en MWh)
E79: Introduisez ci-après l'énergie nette injectée pour l'année, si d'application.
D84: 6. Données relatives aux surcharges
E86: Etes-vous détenteur d'accès ? | G86: Non
E88: Avez-vous un accord de branche ? | G88: Non | H88: Pris en compte dans calcul si détenteur d'accès
E90: Avez-vous un convenant (Kyoto) ? | G90: Non | H90: Pris en compte dans calcul si détenteur d'accès
E92: Quel est votre type d'activité ? | G92: Autre
H93: Pris en compte dans calcul si détenteur d'accès, en Wallonie
H94: et accord de branche et/ou convenant
E96: Merci !
E97: Les résultats peuvent être consultés sur les feuilles "Résultats I" et "Résultats II".

Sheet Résultats I
B3: Tarifs pour :
B4: Type de client : | C4: Client directement raccordé au réseau Elia
B5: Niveau d'infrastructure : | C5: =D_Tension -> En réseau 380/220/150 kV
B6: Région : | C6: =D_Region -> Bruxelles Capitale
B7: Type de point d'accès: | C7: =D_Type -> Principal
B11: A. Les tarifs pour la gestion et le développement de l’infrastructure de réseau
D13: €/kW net prélevé par mois
C14: 1. Les tarifs pour la pointe mensuelle | D14: =VLOOKUP($C$5,Tarifs!D9:F11,3,FALSE) -> 0.2183
D16: €/kW net prélevé par an
C17: 2. Les tarifs pour la pointe annuelle | D17: =VLOOKUP($C$5,Tarifs!D16:F18,3,FALSE) -> 5.8052
D19: €/kVA au prélèvement par an
C20: 3. Les tarifs pour la puissance mise à disposition | D20: =IF($C$7="Principal",VLOOKUP($C$5,Tarifs!D24:G26,3,FALSE),VLOOKUP($C$5,Tarifs!D24:H26,4,FALSE)) -> 4.5052
B22: B. Les tarifs de gestion du système électrique
D23: €/MWh net prélevé
D24: =VLOOKUP($C$5,Tarifs!D32:F34,3,FALSE) -> 0.9074
B26: C. Les tarifs pour les réserves de puissance et le black-start
D27: €/MWh net prélevé
C28: 1. sur base du prélèvement | D28: =VLOOKUP($C$5,Tarifs!D41:F43,3,FALSE) -> 0.6879
D30: €/MWh net injecté
C31: 2. sur base de l'injection | D31: =VLOOKUP($C$5,Tarifs!D47:F49,3,FALSE) -> 0.6169
B33: D. Les tarifs pour l’intégration du marché
D34: €/MWh net prélevé
D35: =VLOOKUP($C$5,Tarifs!D54:F56,3,FALSE) -> 0.3682
B37: E. Tarifs pour obligations de service public
D38: €/MWh net prélevé
C39: 1. Tarif pour obligations de service public pour le financement du raccordement des parcs éoliens offshore (fédéral) | D39: =VLOOKUP($C$5,Tarifs!D63:F65,3,FALSE) -> 0.1188
D41: €/MWh net prélevé
C42: 2. Tarif pour obligations de service public pour le financement de certificats verts (fédéral) | D42: =VLOOKUP($C$5,Tarifs!D70:F72,3,FALSE) -> 9.0141
D44: €/MWh net prélevé
C45: 3. Tarif pour obligations de service public pour le financement des Réserves Stratégiques (fédéral) | D45: =VLOOKUP($C$5,Tarifs!D77:F79,3,FALSE) -> 0
D47: €/MWh net prélevé
C48: 4. Tarif pour obligations de service public pour le financement des mesures de soutien aux énergies renouvelables et cogénération en Flandre | D48: =IF($C$6="Flandre",VLOOKUP($C$5,Tarifs!D84:F86,3,FALSE),0) -> 0
D50: €/MWh net prélevé
C51: 5. Tarif pour obligations de service public pour le financement des mesures de promotion de l’utilisation rationnelle de l’énergie en Flandre | D51: =IF($C$6="Flandre",VLOOKUP($C$5,Tarifs!D91:F93,3,FALSE),0) -> 0
D53: Premier terme | E53: Second terme
D54: €/MWh net prélevé | E54: €/MWh exonéré
C55: 6. Tarif pour obligations de service public pour le financement des mesures de soutien aux énergies renouvelables en Wallonie | D55: =IF($C$6="Wallonie",VLOOKUP($C$5,Tarifs!D99:F101,3,FALSE),0) -> 0 | E55: =IF($C$6="Wallonie",VLOOKUP($C$5,Tarifs!D99:G101,4,FALSE),0) -> 0
B57: F. Taxes et Surcharges
D58: €/MWh net prélevé
C59: 1. Cotisation fédérale | D59: =VLOOKUP($C$5,Tarifs!D107:F109,3,FALSE) -> 3.1428
D61: €/MWh net prélevé
C62: 2. Surcharge pour occupation du domaine public en Wallonie | D62: =IF($C$6="Wallonie",VLOOKUP($C$5,Tarifs!D114:F116,3,FALSE),0) -> 0
D64: €/MWh net prélevé
C65: 3. Redevance pour droit de voirie à Bruxelles Capitale | D65: =IF($C$6="Bruxelles Capitale",VLOOKUP($C$5,Tarifs!D121:F123,3,FALSE),0) -> 3.5084
D67: €/MWh net prélevé
C68: 4. Surcharge pour les taxes "pylônes" et "tranchées" en Flandre | D68: =IF($C$6="Flandre",VLOOKUP($C$5,Tarifs!D128:F130,3,FALSE),0) -> 0

Sheet Résultats II
B2: Résultats
E4: Type de client : | F4: Client directement raccordé au réseau Elia
E5: Niveau d’infrastructure : | F5: =D_Tension -> En réseau 380/220/150 kV
E6: Région : | F6: =D_Region -> Bruxelles Capitale
E7: Type de point d'accès: | F7: =D_Type -> Principal
E8: Détenteur d'accès: | F8: =D_DA -> Non
E9: Accord de branche: | F9: =D_AB -> Non
E10: Convenant: | F10: =D_CK -> Non
E11: Type d'activité: | F11: =D_TA -> Autre
B15: a. Termes pour la gestion et le développement de l’infrastructure de réseau
C17: a.1) Termes pour pointe mensuelle :
F19: Pointe mensuelle | H19: Tarif | J19: Montant
E20: Janvier | F20: =Données!F26 -> 0 | G20: MW * | H20: ='Résultats I'!$D$14 -> 0.2183 | I20: €/kW = | J20: =F20*H20*1000 -> 0 | K20: €
E21: Février | F21: =Données!F27 -> 0 | G21: MW * | H21: =H20 -> 0.2183 | I21: €/kW = | J21: =F21*H21*1000 -> 0 | K21: €
E22: Mars | F22: =Données!F28 -> 0 | G22: MW * | H22: =H21 -> 0.2183 | I22: €/kW = | J22: 0 | K22: €
E23: Avril | F23: =Données!F29 -> 0 | G23: MW * | H23: 0.2183 | I23: €/kW = | J23: 0 | K23: €
E24: Mai | F24: =Données!F30 -> 0 | G24: MW * | H24: 0.2183 | I24: €/kW = | J24: 0 | K24: €
E25: Juin | F25: =Données!F31 -> 0 | G25: MW * | H25: 0.2183 | I25: €/kW = | J25: 0 | K25: €
E26: Juillet | F26: =Données!F32 -> 0 | G26: MW * | H26: 0.2183 | I26: €/kW = | J26: 0 | K26: €
E27: Août | F27: =Données!F33 -> 0 | G27: MW * | H27: 0.2183 | I27: €/kW = | J27: 0 | K27: €
E28: Septembre | F28: =Données!F34 -> 0 | G28: MW * | H28: 0.2183 | I28: €/kW = | J28: 0 | K28: €
E29: Octobre | F29: =Données!F35 -> 0 | G29: MW * | H29: 0.2183 | I29: €/kW = | J29: 0 | K29: €
E30: Novembre | F30: =Données!F36 -> 0 | G30: MW * | H30: 0.2183 | I30: €/kW = | J30: 0 | K30: €
E31: Décembre | F31: =Données!F37 -> 0 | G31: MW * | H31: 0.2183 | I31: €/kW = | J31: 0 | K31: €
I33: Total terme pour pointe mensuelle : | J33: =SUM(J20:J31) -> 0 | K33: €
C36: a.2) Termes pour pointe annuelle :
F38: Pointe annuelle | H38: Tarif | J38: Montant
E39: Janvier | F39: =Données!I26 -> 0 | G39: MW * | H39: ='Résultats I'!$D$17/12 -> 0.4837666667 | I39: €/kW = | J39: =F39*H39*1000 -> 0 | K39: €
E40: Février | F40: =Données!I27 -> 0 | G40: MW * | H40: =H39 -> 0.4837666667 | I40: €/kW = | J40: 0 | K40: €
E41: Mars | F41: =Données!I28 -> 0 | G41: MW * | H41: =H40 -> 0.4837666667 | I41: €/kW = | J41: 0 | K41: €
E42: Avril | F42: =Données!I29 -> 0 | G42: MW * | H42: 0.4837666667 | I42: €/kW = | J42: 0 | K42: €
E43: Mai | F43: =Données!I30 -> 0 | G43: MW * | H43: 0.4837666667 | I43: €/kW = | J43: 0 | K43: €
E44: Juin | F44: =Données!I31 -> 0 | G44: MW * | H44: 0.4837666667 | I44: €/kW = | J44: 0 | K44: €
E45: Juillet | F45: =Données!I32 -> 0 | G45: MW * | H45: 0.4837666667 | I45: €/kW = | J45: 0 | K45: €
E46: Août | F46: =Données!I33 -> 0 | G46: MW * | H46: 0.4837666667 | I46: €/kW = | J46: 0 | K46: €
E47: Septembre | F47: =Données!I34 -> 0 | G47: MW * | H47: 0.4837666667 | I47: €/kW = | J47: 0 | K47: €
E48: Octobre | F48: =Données!I35 -> 0 | G48: MW * | H48: 0.4837666667 | I48: €/kW = | J48: 0 | K48: €
E49: Novembre | F49: =Données!I36 -> 0 | G49: MW * | H49: 0.4837666667 | I49: €/kW = | J49: 0 | K49: €
E50: Décembre | F50: =Données!I37 -> 0 | G50: MW * | H50: 0.4837666667 | I50: €/kW = | J50: 0 | K50: €
I52: Total terme pour pointe annuelle : | J52: =SUM(J39:J50) -> 0 | K52: €
C55: a.3) Termes pour puissance mise à disposition :
F57: Puissance | H57: Tarif | J57: Montant
F58: =Données!$F$48 -> 0 | G58: MVA * | H58: ='Résultats I'!$D$20 -> 4.5052 | I58: €/kVA | J58: =F58*H58*1000 -> 0 | K58: €
I60: Total terme pour la gestion et le développement de l’infrastructure de réseau : | J60: =J33+J52+J58 -> 0 | K60: €
B63: b) Termes pour gestion du système électrique :
F65: Energie nette prélevée | H65: Tarif | J65: Montant
E66: Janvier | F66: =Données!H62 -> 0 | G66: MWh * | H66: ='Résultats I'!D24 -> 0.9074 | I66: €/MWh = | J66: =F66*H66 -> 0 | K66: €
E67: Février | F67: =Données!H63 -> 0 | G67: MWh * | H67: =H66 -> 0.9074 | I67: €/MWh = | J67: =F67*H67 -> 0 | K67: €
E68: Mars | F68: =Données!H64 -> 0 | G68: MWh * | H68: =H67 -> 0.9074 | I68: €/MWh = | J68: 0 | K68: €
E69: Avril | F69: =Données!H65 -> 0 | G69: MWh * | H69: 0.9074 | I69: €/MWh = | J69: 0 | K69: €
E70: Mai | F70: =Données!H66 -> 0 | G70: MWh * | H70: 0.9074 | I70: €/MWh = | J70: 0 | K70: €
E71: Juin | F71: =Données!H67 -> 0 | G71: MWh * | H71: 0.9074 | I71: €/MWh = | J71: 0 | K71: €
E72: Juillet | F72: =Données!H68 -> 0 | G72: MWh * | H72: 0.9074 | I72: €/MWh = | J72: 0 | K72: €
E73: Août | F73: =Données!H69 -> 0 | G73: MWh * | H73: 0.9074 | I73: €/MWh = | J73: 0 | K73: €
E74: Septembre | F74: =Données!H70 -> 0 | G74: MWh * | H74: 0.9074 | I74: €/MWh = | J74: 0 | K74: €
E75: Octobre | F75: =Données!H71 -> 0 | G75: MWh * | H75: 0.9074 | I75: €/MWh = | J75: 0 | K75: €
E76: Novembre | F76: =Données!H72 -> 0 | G76: MWh * | H76: 0.9074 | I76: €/MWh = | J76: 0 | K76: €
E77: Décembre | F77: =Données!H73 -> 0 | G77: MWh * | H77: 0.9074 | I77: €/MWh = | J77: 0 | K77: €
I79: Total terme pour gestion du système électrique : | J79: =SUM(J66:J77) -> 0 | K79: €
B82: c) Termes pour les réserves de puissance et le black-start :
D84: c.1. Pour le prélèvement :
F85: Energie nette prélevée | H85: Tarif | J85: Montant
E86: Janvier | F86: =Données!H62 -> 0 | G86: MWh * | H86: ='Résultats I'!D28 -> 0.6879 | I86: €/MWh = | J86: =F86*H86 -> 0 | K86: €
E87: Février | F87: =Données!H63 -> 0 | G87: MWh * | H87: =H86 -> 0.6879 | I87: €/MWh = | J87: =F87*H87 -> 0 | K87: €
E88: Mars | F88: =Données!H64 -> 0 | G88: MWh * | H88: =H87 -> 0.6879 | I88: €/MWh = | J88: 0 | K88: €
E89: Avril | F89: =Données!H65 -> 0 | G89: MWh * | H89: 0.6879 | I89: €/MWh = | J89: 0 | K89: €
E90: Mai | F90: =Données!H66 -> 0 | G90: MWh * | H90: 0.6879 | I90: €/MWh = | J90: 0 | K90: €
E91: Juin | F91: =Données!H67 -> 0 | G91: MWh * | H91: 0.6879 | I91: €/MWh = | J91: 0 | K91: €
E92: Juillet | F92: =Données!H68 -> 0 | G92: MWh * | H92: 0.6879 | I92: €/MWh = | J92: 0 | K92: €
E93: Août | F93: =Données!H69 -> 0 | G93: MWh * | H93: 0.6879 | I93: €/MWh = | J93: 0 | K93: €
E94: Septembre | F94: =Données!H70 -> 0 | G94: MWh * | H94: 0.6879 | I94: €/MWh = | J94: 0 | K94: €
E95: Octobre | F95: =Données!H71 -> 0 | G95: MWh * | H95: 0.6879 | I95: €/MWh = | J95: 0 | K95: €
E96: Novembre | F96: =Données!H72 -> 0 | G96: MWh * | H96: 0.6879 | I96: €/MWh = | J96: 0 | K96: €
E97: Décembre | F97: =Données!H73 -> 0 | G97: MWh * | H97: 0.6879 | I97: €/MWh = | J97: 0 | K97: €
D99: Total terme pour les réserves de puissance et le black-start pour le prélèvement : | J99: =SUM(J86:J97) -> 0 | K99: €
D101: c.2. Pour l'injection :
F102: Energie nette injectée | H102: Tarif | J102: Montant
F103: =Données!F81 -> 0 | G103: MWh * | H103: ='Résultats I'!D31 -> 0.6169 | I103: €/MWh = | J103: =F103*H103 -> 0 | K103: €
D105: Total terme pour les réserves de puissance et le black-start : | J105: =J99+J103 -> 0 | K105: €
B108: d) Termes pour l’intégration du marché :
F110: Energie nette prélevée | H110: Tarif | J110: Montant
E111: Janvier | F111: =Données!H62 -> 0 | G111: MWh * | H111: ='Résultats I'!D35 -> 0.3682 | I111: €/MWh = | J111: =F111*H111 -> 0 | K111: €
E112: Février | F112: =Données!H63 -> 0 | G112: MWh * | H112: =H111 -> 0.3682 | I112: €/MWh = | J112: =F112*H112 -> 0 | K112: €
E113: Mars | F113: =Données!H64 -> 0 | G113: MWh * | H113: =H112 -> 0.3682 | I113: €/MWh = | J113: 0 | K113: €
E114: Avril | F114: =Données!H65 -> 0 | G114: MWh * | H114: 0.3682 | I114: €/MWh = | J114: 0 | K114: €
E115: Mai | F115: =Données!H66 -> 0 | G115: MWh * | H115: 0.3682 | I115: €/MWh = | J115: 0 | K115: €
E116: Juin | F116: =Données!H67 -> 0 | G116: MWh * | H116: 0.3682 | I116: €/MWh = | J116: 0 | K116: €
E117: Juillet | F117: =Données!H68 -> 0 | G117: MWh * | H117: 0.3682 | I117: €/MWh = | J117: 0 | K117: €
E118: Août | F118: =Données!H69 -> 0 | G118: MWh * | H118: 0.3682 | I118: €/MWh = | J118: 0 | K118: €
E119: Septembre | F119: =Données!H70 -> 0 | G119: MWh * | H119: 0.3682 | I119: €/MWh = | J119: 0 | K119: €
E120: Octobre | F120: =Données!H71 -> 0 | G120: MWh * | H120: 0.3682 | I120: €/MWh = | J120: 0 | K120: €
E121: Novembre | F121: =Données!H72 -> 0 | G121: MWh * | H121: 0.3682 | I121: €/MWh = | J121: 0 | K121: €
E122: Décembre | F122: =Données!H73 -> 0 | G122: MWh * | H122: 0.3682 | I122: €/MWh = | J122: 0 | K122: €
I124: Total terme pour intégration du marché : | J124: =SUM(J111:J122) -> 0 | K124: €
B127: e) Obligations de service public :
C129: e.1.) Financement de raccordement des parcs éoliens offshore (niveau fédéral)
F131: Energie nette prélevée | H131: Tarif | J131: Montant
E132: Janvier | F132: =Données!H62 -> 0 | G132: MWh * | H132: ='Résultats I'!D39 -> 0.1188 | I132: €/MWh = | J132: =F132*H132 -> 0 | K132: €
E133: Février | F133: =Données!H63 -> 0 | G133: MWh * | H133: =H132 -> 0.1188 | I133: €/MWh = | J133: =F133*H133 -> 0 | K133: €
E134: Mars | F134: =Données!H64 -> 0 | G134: MWh * | H134: =H133 -> 0.1188 | I134: €/MWh = | J134: 0 | K134: €
E135: Avril | F135: =Données!H65 -> 0 | G135: MWh * | H135: 0.1188 | I135: €/MWh = | J135: 0 | K135: €
E136: Mai | F136: =Données!H66 -> 0 | G136: MWh * | H136: 0.1188 | I136: €/MWh = | J136: 0 | K136: €
E137: Juin | F137: =Données!H67 -> 0 | G137: MWh * | H137: 0.1188 | I137: €/MWh = | J137: 0 | K137: €
E138: Juillet | F138: =Données!H68 -> 0 | G138: MWh * | H138: 0.1188 | I138: €/MWh = | J138: 0 | K138: €
E139: Août | F139: =Données!H69 -> 0 | G139: MWh * | H139: 0.1188 | I139: €/MWh = | J139: 0 | K139: €
E140: Septembre | F140: =Données!H70 -> 0 | G140: MWh * | H140: 0.1188 | I140: €/MWh = | J140: 0 | K140: €
E141: Octobre | F141: =Données!H71 -> 0 | G141: MWh * | H141: 0.1188 | I141: €/MWh = | J141: 0 | K141: €
E142: Novembre | F142: =Données!H72 -> 0 | G142: MWh * | H142: 0.1188 | I142: €/MWh = | J142: 0 | K142: €
E143: Décembre | F143: =Données!H73 -> 0 | G143: MWh * | H143: 0.1188 | I143: €/MWh = | J143: 0 | K143: €
I145: Total terme pour financement de raccordement des parcs éoliens offshore : | J145: =SUM(J132:J143) -> 0 | K145: €
C148: e.2.) Certificat vert (niveau fédéral)
D149: Le calcul de la dégressivité se fait sur base des volumes prélevès de l'année calendrier en cours
D150: et non, sur base des volumes prélevés de 11 derniers mois plus le mois courant comme prévu dans le tarif.
D151: Pour les clients finals, la détermination de la tranche de prélèvement pour définir le taux de dégressivité et le calcul
D152: du maximum de 250.000 € se fait par point de prélèvement et non par site de consommation comme défini dans le tarif
E154: Tranches | F154: Energie nette prélevée par tranche | H154: Tarif | J154: Montant | M154: Dégressivité
E155: 0-20 | F155: =MIN(20,Données!H74) -> 0 | G155: MWh * | H155: ='Résultats I'!D42 -> 9.0141 | I155: €/MWh = | J155: =F155*H155*M155 -> 0 | K155: € | M155: 1 | O155: =IF(Données!O86="Oui","","") -> 
E156: 20-50 | F156: =MIN(50,Données!H74)-SUM($F$155:F155) -> 0 | G156: MWh * | H156: =H155 -> 9.0141 | I156: €/MWh = | J156: =F156*H156*M156 -> 0 | K156: € | M156: =IF(AND($F$8="Oui",OR($F$9="Oui",$F$10="Oui")),0.85,1) -> 1
E157: 50-1000 | F157: =MIN(1000,Données!H74)-SUM($F$155:F156) -> 0 | G157: MWh * | H157: =H156 -> 9.0141 | I157: €/MWh = | J157: =F157*H157*M157 -> 0 | K157: € | M157: =IF(AND($F$8="Oui",OR($F$9="Oui",$F$10="Oui")),0.8,1) -> 1
E158: 1000-25000 | F158: =MIN(25000,Données!H74)-SUM($F$155:F157) -> 0 | G158: MWh * | H158: =H157 -> 9.0141 | I158: €/MWh = | J158: =F158*H158*M158 -> 0 | K158: € | M158: =IF(AND($F$8="Oui",OR($F$9="Oui",$F$10="Oui")),0.75,1) -> 1
E159: >25000 | F159: =Données!H74-SUM($F$155:F158) -> 0 | G159: MWh * | H159: =H158 -> 9.0141 | I159: €/MWh = | J159: =F159*H159*M159 -> 0 | K159: € | M159: =IF(AND($F$8="Oui",OR($F$9="Oui",$F$10="Oui")),0.55,1) -> 1
I161: Total terme pour certificat vert : | J161: =IF(AND($F$8="Oui",OR($F$9="Oui",$F$10="Oui")),MIN(250000,SUM(J155:J159)),SUM(J155:J159)) -> 0 | K161: €
C164: e.3.) Financement des réserves stratégiques (niveau fédéral)
F166: Energie nette prélevée | H166: Tarif | J166: Montant
E167: Janvier | F167: =Données!H62 -> 0 | G167: MWh * | H167: ='Résultats I'!D45 -> 0 | I167: €/MWh = | J167: =F167*H167 -> 0 | K167: €
E168: Février | F168: =Données!H63 -> 0 | G168: MWh * | H168: =H167 -> 0 | I168: €/MWh = | J168: =F168*H168 -> 0 | K168: €
E169: Mars | F169: =Données!H64 -> 0 | G169: MWh * | H169: =H168 -> 0 | I169: €/MWh = | J169: 0 | K169: €
E170: Avril | F170: =Données!H65 -> 0 | G170: MWh * | H170: 0 | I170: €/MWh = | J170: 0 | K170: €
E171: Mai | F171: =Données!H66 -> 0 | G171: MWh * | H171: 0 | I171: €/MWh = | J171: 0 | K171: €
E172: Juin | F172: =Données!H67 -> 0 | G172: MWh * | H172: 0 | I172: €/MWh = | J172: 0 | K172: €
E173: Juillet | F173: =Données!H68 -> 0 | G173: MWh * | H173: 0 | I173: €/MWh = | J173: 0 | K173: €
E174: Août | F174: =Données!H69 -> 0 | G174: MWh * | H174: 0 | I174: €/MWh = | J174: 0 | K174: €
E175: Septembre | F175: =Données!H70 -> 0 | G175: MWh * | H175: 0 | I175: €/MWh = | J175: 0 | K175: €
E176: Octobre | F176: =Données!H71 -> 0 | G176: MWh * | H176: 0 | I176: €/MWh = | J176: 0 | K176: €
E177: Novembre | F177: =Données!H72 -> 0 | G177: MWh * | H177: 0 | I177: €/MWh = | J177: 0 | K177: €
E178: Décembre | F178: =Données!H73 -> 0 | G178: MWh * | H178: 0 | I178: €/MWh = | J178: 0 | K178: €
I180: Total terme pour financement des réserves stratégiques : | J180: =SUM(J167:J178) -> 0 | K180: €
C183: e.4.) Financement des mesures de soutien aux énergies renouvelables et cogénération (en Région Flamande)
D184: La détermination du tarif ne dépend pas de l’année précédente mais bien de l’année choisie en référence contrairement à ce qui est prévu dans les tarifs.
D186: =IF($F$6="Flandre","","Pas d'application dans cette région") -> Pas d'application dans cette région
E187: Tranches | F187: Energie nette prélevée par tranche | H187: Tarif | J187: Montant | M187: Dégressivité
E188: 0-1000 | F188: =IF($F$6<>"Flandre","",IF(Données!H74<1000,Données!H74,0)) ->  | G188: =IF($F$6<>"Flandre","","MWh *") ->  | H188: =IF($F$6<>"Flandre","",'Résultats I'!$D$48) ->  | I188: =IF($F$6<>"Flandre","","€/MWh =") ->  | J188: =IF($F$6<>"Flandre","",F188*H188*M188) ->  | K188: =IF($F$6<>"Flandre","","€") ->  | M188: =IF($F$6<>"Flandre","",1) -> 
E189: 1000-20000 | F189: =IF($F$6<>"Flandre","",IF(AND(1000<=Données!H74,Données!H74<20000),Données!H74,0)) ->  | G189: =IF($F$6<>"Flandre","","MWh *") ->  | H189: =IF($F$6<>"Flandre","",'Résultats I'!$D$48) ->  | I189: =IF($F$6<>"Flandre","","€/MWh =") ->  | J189: =IF($F$6<>"Flandre","",F189*H189*M189) ->  | K189: =IF($F$6<>"Flandre","","€") ->  | M189: =IF($F$6<>"Flandre","",0.53) -> 
E190: 20000-100000 | F190: =IF($F$6<>"Flandre","",IF(AND(20000<=Données!H74,Données!H74<100000),Données!H74,0)) ->  | G190: =IF($F$6<>"Flandre","","MWh *") ->  | H190: =IF($F$6<>"Flandre","",'Résultats I'!$D$48) ->  | I190: =IF($F$6<>"Flandre","","€/MWh =") ->  | J190: =IF($F$6<>"Flandre","",F190*H190*M190) ->  | K190: =IF($F$6<>"Flandre","","€") ->  | M190: =IF($F$6<>"Flandre","",0.2) -> 
E191: 100000-250000 | F191: =IF($F$6<>"Flandre","",IF(AND(100000<=Données!H74,Données!H74<250000),Données!H74,0)) ->  | G191: =IF($F$6<>"Flandre","","MWh *") ->  | H191: =IF($F$6<>"Flandre","",'Résultats I'!$D$48) ->  | I191: =IF($F$6<>"Flandre","","€/MWh =") ->  | J191: =IF($F$6<>"Flandre","",F191*H191*M191) ->  | K191: =IF($F$6<>"Flandre","","€") ->  | M191: =IF($F$6<>"Flandre","",0.2) -> 
E192: >250000 | F192: =IF($F$6<>"Flandre","",IF(AND(250000<=Données!H74,Données!H74),Données!H74,0)) ->  | G192: =IF($F$6<>"Flandre","","MWh *") ->  | H192: =IF($F$6<>"Flandre","",'Résultats I'!$D$48) ->  | I192: =IF($F$6<>"Flandre","","€/MWh =") ->  | J192: =IF($F$6<>"Flandre","",F192*H192*M192) ->  | K192: =IF($F$6<>"Flandre","","€") ->  | M192: =IF($F$6<>"Flandre","",0.02) -> 
E194: Total terme pour financement des mesures de soutien aux énergies renouvelables et cogénération : | J194: =SUM(J188:J192) -> 0 | K194: €
C196: e.5.) Financement des mesures en faveur de l'utilisation rationnelle de l'énergie (en Région Flamande)
D197: =IF($F$6="Flandre","","Pas d'application dans cette région") -> Pas d'application dans cette région
F198: Energie nette prélevée | H198: Tarif | J198: Montant
E199: Janvier | F199: =IF($F$6<>"Flandre","",Données!H62) ->  | G199: =IF($F$6<>"Flandre","","MWh *") ->  | H199: =IF($F$6<>"Flandre","",'Résultats I'!$D$51) ->  | I199: =IF($F$6<>"Flandre","","€/MWh =") ->  | J199: =IF($F$6<>"Flandre","",F199*H199) ->  | K199: =IF($F$6<>"Flandre","","€") -> 
E200: Février | F200: =IF($F$6<>"Flandre","",Données!H63) ->  | H200: =IF($F$6<>"Flandre","",'Résultats I'!$D$51) -> 
E201: Mars | F201: =IF($F$6<>"Flandre","",Données!H64) ->  | H201: =IF($F$6<>"Flandre","",'Résultats I'!$D$51) -> 
E202: Avril | F202: =IF($F$6<>"Flandre","",Données!H65) ->  | H202: =IF($F$6<>"Flandre","",'Résultats I'!$D$51) -> 
E203: Mai | F203: =IF($F$6<>"Flandre","",Données!H66) ->  | H203: =IF($F$6<>"Flandre","",'Résultats I'!$D$51) -> 
E204: Juin | F204: =IF($F$6<>"Flandre","",Données!H67) ->  | H204: =IF($F$6<>"Flandre","",'Résultats I'!$D$51) -> 
E205: Juillet | F205: =IF($F$6<>"Flandre","",Données!H68) ->  | H205: =IF($F$6<>"Flandre","",'Résultats I'!$D$51) -> 
E206: Août | F206: =IF($F$6<>"Flandre","",Données!H69) ->  | H206: =IF($F$6<>"Flandre","",'Résultats I'!$D$51) -> 
E207: Septembre | F207: =IF($F$6<>"Flandre","",Données!H70) ->  | H207: =IF($F$6<>"Flandre","",'Résultats I'!$D$51) -> 
E208: Octobre | F208: =IF($F$6<>"Flandre","",Données!H71) ->  | H208: =IF($F$6<>"Flandre","",'Résultats I'!$D$51) -> 
E209: Novembre | F209: =IF($F$6<>"Flandre","",Données!H72) ->  | H209: =IF($F$6<>"Flandre","",'Résultats I'!$D$51) -> 
E210: Décembre | F210: =IF($F$6<>"Flandre","",Données!H73) ->  | H210: =IF($F$6<>"Flandre","",'Résultats I'!$D$51) -> 
I212: Total terme pour financement des URE : | J212: =SUM(J199:J210) -> 0 | K212: €
C214: e.6.) Financement des mesures de soutien aux énergies renouvelables (en Région Wallonne)
D215: =IF($F$6="Wallonie","","Pas d'application dans cette région") -> Pas d'application dans cette région
D217: e.6.a.) Premier terme
F219: Energie nette prélevée | H219: Tarif premier terme | J219: Montant
E220: Janvier | F220: =IF($F$6<>"Wallonie","",Données!H62) ->  | G220: =IF($F$6<>"Wallonie","","MWh *") ->  | H220: =IF($F$6<>"Wallonie","",'Résultats I'!$D$55) ->  | I220: =IF($F$6<>"Wallonie","","€/MWh =") ->  | J220: =IF($F$6<>"Wallonie","",F220*H220) ->  | K220: =IF($F$6<>"Wallonie","","€") -> 
E221: Février | F221: =IF($F$6<>"Wallonie","",Données!H63) ->  | G221: =IF($F$6<>"Wallonie","","MWh *") ->  | H221: =IF($F$6<>"Wallonie","",'Résultats I'!$D$55) ->  | I221: =IF($F$6<>"Wallonie","","€/MWh =") ->  | J221: =IF($F$6<>"Wallonie","",F221*H221) -> 
E222: Mars | F222: =IF($F$6<>"Wallonie","",Données!H64) ->  | H222: =IF($F$6<>"Wallonie","",'Résultats I'!$D$55) -> 
E223: Avril | F223: =IF($F$6<>"Wallonie","",Données!H65) ->  | H223: =IF($F$6<>"Wallonie","",'Résultats I'!$D$55) -> 
E224: Mai | F224: =IF($F$6<>"Wallonie","",Données!H66) ->  | H224: =IF($F$6<>"Wallonie","",'Résultats I'!$D$55) -> 
E225: Juin | F225: =IF($F$6<>"Wallonie","",Données!H67) ->  | H225: =IF($F$6<>"Wallonie","",'Résultats I'!$D$55) -> 
E226: Juillet | F226: =IF($F$6<>"Wallonie","",Données!H68) ->  | H226: =IF($F$6<>"Wallonie","",'Résultats I'!$D$55) -> 
E227: Août | F227: =IF($F$6<>"Wallonie","",Données!H69) ->  | H227: =IF($F$6<>"Wallonie","",'Résultats I'!$D$55) -> 
E228: Septembre | F228: =IF($F$6<>"Wallonie","",Données!H70) ->  | H228: =IF($F$6<>"Wallonie","",'Résultats I'!$D$55) -> 
E229: Octobre | F229: =IF($F$6<>"Wallonie","",Données!H71) ->  | H229: =IF($F$6<>"Wallonie","",'Résultats I'!$D$55) -> 
E230: Novembre | F230: =IF($F$6<>"Wallonie","",Données!H72) ->  | H230: =IF($F$6<>"Wallonie","",'Résultats I'!$D$55) -> 
E231: Décembre | F231: =IF($F$6<>"Wallonie","",Données!H73) ->  | H231: =IF($F$6<>"Wallonie","",'Résultats I'!$D$55) -> 
I233: Total premier terme des mesures de soutien aux énergies renouvelables : | J233: =SUM(J220:J231) -> 0 | K233: €
I235: Total terme pour obligations de service public : | J235: =J145+J161+J180+J194+J212+J233 -> 0 | K235: €
D239: Le crédit de l'exonération du premier terme et la facturation du second terme se font sur base trimestrielle d'un fichier reçu par la SPW
D240: sur base du prélèvement et tarif défini par la SPW.
D241: Les principes sont décrit dans les lignes directrives publiées par la SPW.
D242: Pour plus d'information, voir https://www.elia.be/fr/clients/certificats-verts-et-surcharges/wallonie-exemptions-partielles#Partial exemptions.
D243: Le calcul ci-dessous est pûrement indicatif sur base du volume de prélèvement simulé connu par Elia et sur base du tarif du premier terme.
D245: e.6.b.) Exonération premier terme
F246: Energie nette prélevée | H246: Tarif exonéré | J246: Montant | M246: Exonération
E247: Janvier | F247: =IF($F$6<>"Wallonie","",Données!H62) ->  | G247: =IF($F$6<>"Wallonie","","MWh *") ->  | H247: =IF($F$6<>"Wallonie","",-'Résultats I'!$D$55*$M$247) ->  | I247: =IF($F$6<>"Wallonie","","€/MWh =") ->  | J247: =IF($F$6<>"Wallonie","",F247*H247) ->  | K247: =IF($F$6<>"Wallonie","","€") ->  | M247: =IF($F$6<>"Wallonie","",IF($F$8="Non",0,IF($F$9="Oui",0.85,IF($F$11="Autre",0,IF($F$11="Culture et production animale (01)",0.5,IF(Données!H74>1000,0.5,0)))))) -> 
E248: Février | F248: =IF($F$6<>"Wallonie","",Données!H63) ->  | G248: =IF($F$6<>"Wallonie","","MWh *") ->  | H248: =IF($F$6<>"Wallonie","",-'Résultats I'!$D$55*$M$247) ->  | I248: =IF($F$6<>"Wallonie","","€/MWh =") ->  | J248: =IF($F$6<>"Wallonie","",F248*H248) -> 
E249: Mars | F249: =IF($F$6<>"Wallonie","",Données!H64) ->  | H249: =IF($F$6<>"Wallonie","",-'Résultats I'!$D$55*$M$247) -> 
E250: Avril | F250: =IF($F$6<>"Wallonie","",Données!H65) ->  | H250: =IF($F$6<>"Wallonie","",-'Résultats I'!$D$55*$M$247) -> 
E251: Mai | F251: =IF($F$6<>"Wallonie","",Données!H66) ->  | H251: =IF($F$6<>"Wallonie","",-'Résultats I'!$D$55*$M$247) -> 
E252: Juin | F252: =IF($F$6<>"Wallonie","",Données!H67) ->  | H252: =IF($F$6<>"Wallonie","",-'Résultats I'!$D$55*$M$247) -> 
E253: Juillet | F253: =IF($F$6<>"Wallonie","",Données!H68) ->  | H253: =IF($F$6<>"Wallonie","",-'Résultats I'!$D$55*$M$247) -> 
E254: Août | F254: =IF($F$6<>"Wallonie","",Données!H69) ->  | H254: =IF($F$6<>"Wallonie","",-'Résultats I'!$D$55*$M$247) -> 
E255: Septembre | F255: =IF($F$6<>"Wallonie","",Données!H70) ->  | H255: =IF($F$6<>"Wallonie","",-'Résultats I'!$D$55*$M$247) -> 
E256: Octobre | F256: =IF($F$6<>"Wallonie","",Données!H71) ->  | H256: =IF($F$6<>"Wallonie","",-'Résultats I'!$D$55*$M$247) -> 
E257: Novembre | F257: =IF($F$6<>"Wallonie","",Données!H72) ->  | H257: =IF($F$6<>"Wallonie","",-'Résultats I'!$D$55*$M$247) -> 
E258: Décembre | F258: =IF($F$6<>"Wallonie","",Données!H73) ->  | H258: =IF($F$6<>"Wallonie","",-'Résultats I'!$D$55*$M$247) -> 
... 85 more rows

Sheet Tarifs
B2: TARIFS
B5: A. Les tarifs pour la gestion et le développement de l’infrastructure de réseau
C7: 1. Les tarifs pour la pointe mensuelle
F8: €/kW net prélevé par mois
D9: En réseau 380/220/150 kV | F9: 0.2183
D10: En réseau 70/36/30 kV | F10: 0.3902
D11: A la sortie des transformations vers Moyenne Tension | F11: 0.5594
C14: 2. Les tarifs pour la pointe annuelle
F15: €/kW net prélevé par an
D16: En réseau 380/220/150 kV | F16: 5.8052
D17: En réseau 70/36/30 kV | F17: 10.003
D18: A la sortie des transformations vers Moyenne Tension | F18: 14.0779
C21: 3. Les tarifs pour la puissance mise à disposition
F22: PA principal | G22: PA complémentaire
F23: €/kVA au prélèvement par an | G23: €/kVA au prélèvement par an
D24: En réseau 380/220/150 kV | F24: 4.5052 | G24: 0.901
D25: En réseau 70/36/30 kV | F25: 8.6717 | G25: 1.7343
D26: A la sortie des transformations vers Moyenne Tension | F26: 15.7687 | G26: 3.1537
B29: B. Les tarifs de gestion du système électrique
F31: €/MWh net prélevé
D32: En réseau 380/220/150 kV | F32: 0.9074
D33: En réseau 70/36/30 kV | F33: 1.4304
D34: A la sortie des transformations vers Moyenne Tension | F34: 2.2368
B37: C. Les tarifs pour les réserves de puissance et le black-start
C39: 1. sur base du prélèvement
F40: €/MWh net prélevé
D41: En réseau 380/220/150 kV | F41: 0.6879
D42: En réseau 70/36/30 kV | F42: 0.6879
D43: A la sortie des transformations vers Moyenne Tension | F43: 0.6879
C45: 2. sur base de l’injection
F46: €/MWh net injecté
D47: En réseau 380/220/150 kV | F47: 0.6169
D48: En réseau 70/36/30 kV | F48: 0.6169
D49: A la sortie des transformations vers Moyenne Tension | F49: 0.6169
B52: D. Les tarifs pour l’intégration du marché
F53: €/MWh net prélevé
D54: En réseau 380/220/150 kV | F54: 0.3682
D55: En réseau 70/36/30 kV | F55: 0.3682
D56: A la sortie des transformations vers Moyenne Tension | F56: 0.3682
B59: E. Tarifs pour obligations de service public
C61: 1. Tarif pour obligations de service public pour le financement du raccordement des parcs éoliens offshore (fédéral)
F62: €/MWh net prélevé
D63: En réseau 380/220/150 kV | F63: 0.1188
D64: En réseau 70/36/30 kV | F64: 0.1188
D65: A la sortie des transformations vers Moyenne Tension | F65: 0.1188
C68: 2. Tarif pour obligations de service public pour le financement de certificats verts (fédéral)
F69: €/MWh net prélevé
D70: En réseau 380/220/150 kV | F70: 9.0141
D71: En réseau 70/36/30 kV | F71: 9.0141
D72: A la sortie des transformations vers Moyenne Tension | F72: 9.0141
C75: 3. Tarif pour obligations de service public pour le financement des Réserves Stratégiques (fédéral)
F76: €/MWh net prélevé
D77: En réseau 380/220/150 kV | F77: 0
D78: En réseau 70/36/30 kV | F78: 0
D79: A la sortie des transformations vers Moyenne Tension | F79: 0
C82: 4. Tarif pour obligations de service public pour le financement des mesures de soutien aux énergies renouvelables et cogénération en Flandre
F83: €/MWh net prélevé
D84: En réseau 380/220/150 kV | F84: 0
D85: En réseau 70/36/30 kV | F85: 0.1609
D86: A la sortie des transformations vers Moyenne Tension | F86: 0.1609
C89: 5. Tarif pour obligations de service public pour le financement des mesures de promotion de l’utilisation rationnelle de l’énergie en Flandre
F90: €/MWh net prélevé
D91: En réseau 380/220/150 kV | F91: 0
D92: En réseau 70/36/30 kV | F92: 0
D93: A la sortie des transformations vers Moyenne Tension | F93: 0
C96: 6. Tarif pour obligations de service public pour le financement des mesures de soutien aux énergies renouvelables en Wallonie
F97: Premier terme | G97: Second terme
F98: €/MWh net prélevé | G98: €/MWh exonéré
D99: En réseau 380/220/150 kV | F99: 0 | G99: 0
D100: En réseau 70/36/30 kV | F100: 13.8159 | G100: 0
D101: A la sortie des transformations vers Moyenne Tension | F101: 13.8159 | G101: 0
B103: F. Taxes et Surcharges
C105: 1. Cotisation fédérale
F106: €/MWh net prélevé
D107: En réseau 380/220/150 kV | F107: 3.1428
D108: En réseau 70/36/30 kV | F108: 3.1428
D109: A la sortie des transformations vers Moyenne Tension | F109: 3.1428
C112: 2. Surcharge pour occupation du domaine public en Wallonie
F113: €/MWh net prélevé
D114: En réseau 380/220/150 kV | F114: 0
D115: En réseau 70/36/30 kV | F115: 0.3378
D116: A la sortie des transformations vers Moyenne Tension | F116: 0.3378
C119: 3. Redevance pour droit de voirie à Bruxelles Capitale
F120: €/MWh net prélevé
D121: En réseau 380/220/150 kV | F121: 3.5084
D122: En réseau 70/36/30 kV | F122: 3.5084
D123: A la sortie des transformations vers Moyenne Tension | F123: 0
C126: 4. Surcharge pour les taxes "pylônes" et "tranchées" en Flandre
F127: €/MWh net prélevé
D128: En réseau 380/220/150 kV | F128: 0.1441
D129: En réseau 70/36/30 kV | F129: 0.1441
D130: A la sortie des transformations vers Moyenne Tension | F130: 0.1441
